fUST/lending_fUST_20240731
["ID","MTS","AMOUNT","RATE_DAILY","PERIOD"]
[333699241,1722371241413,-500.0,0.00014509,2]
[333699242,1722371241435,-300.0,0.00014509,2]
[333699243,1722371241459,-25719.8685018,0.0001451,2]
[333699244,1722371241485,-1512.55983199,0.00014518,2]
[333699311,1722371433224,-344.62333617,0.000125,2]
[333699373,1722371438435,-2023.51194993,0.000125,2]
[333699374,1722371438445,-165.672597,0.00012986,2]
[333699375,1722371438458,-38185.22106988,0.000136,2]
[333699376,1722371438496,-10441.39996602,0.000136,2]
[333699377,1722371438507,-1392.53878483,0.00013688,2]
[333699378,1722371438517,-242.8705928,0.00013699,2]
[333699379,1722371438526,-3000.0,0.00013699,2]
[333699380,1722371438536,-500.0,0.00014198,2]
[333699381,1722371438545,-500.0,0.00014198,2]
[333699382,1722371438555,-1339.22,0.00014198,2]
[333699383,1722371438564,-500.0,0.00014198,2]
[333699384,1722371438574,-500.0,0.00014198,2]
[333699385,1722371438583,-500.0,0.00014198,2]
[333699386,1722371438593,-500.0,0.00014199,2]
[333699387,1722371438603,-500.0,0.00014199,2]
[333699388,1722371438612,-1994.07,0.00014199,2]
[333699389,1722371438622,-1994.07,0.00014199,2]
[333699390,1722371438631,-500.0,0.00014199,2]
[333699391,1722371438641,-2417.27,0.00014199,2]
[333699392,1722371438650,-960.33,0.00014199,2]
[333699393,1722371438661,-500.0,0.00014199,2]
[333699394,1722371438671,-500.0,0.00014199,2]
[333699395,1722371438681,-500.0,0.00014199,2]
[333699396,1722371438691,-500.0,0.00014199,2]
[333699397,1722371438700,-500.0,0.00014199,2]
[333699398,1722371438711,-500.0,0.00014199,2]
[333699399,1722371438721,-500.0,0.00014199,2]
[333699400,1722371438732,-728.332163,0.00014247,2]
[333699401,1722371438742,-1339.22,0.00014472,2]
[333699402,1722371438753,-500.0,0.00014473,2]
[333699403,1722371438764,-2417.27,0.00014473,2]
[333699404,1722371438775,-960.33,0.00014473,2]
[333699405,1722371438785,-16166.7744869,0.0001451,2]
[333699406,1722371438795,-1994.07,0.00014517,2]
[333699407,1722371438806,-3200.0,0.00014518,2]
[333699408,1722371438817,-7965.36559638,0.00014518,2]
[333699409,1722371438827,-1628.76280058,0.00014518,2]
[333699410,1722371438839,-1167.6,0.00014519,2]
[333699411,1722371438849,-566.54,0.00014519,2]
[333699412,1722371438860,-2930.05,0.00014519,2]
[333699413,1722371438870,-492.59,0.00014519,2]
[333699414,1722371438880,-261.26,0.00014519,2]
[333699415,1722371438892,-1890.66,0.00014519,2]
[333699416,1722371438902,-1355.75,0.00014519,2]
[333699417,1722371438913,-500.0,0.00014519,2]
[333699418,1722371438922,-500.0,0.00014519,2]
[333699419,1722371438932,-160.55386504,0.00014519,2]
[333699420,1722371438943,-176.96044035,0.00014519,2]
[333699421,1722371438955,-500.0,0.00014519,2]
[333699422,1722371438968,-500.0,0.00014519,2]
[333699423,1722371438979,-425.84069909,0.00014519,2]
[333699424,1722371438990,-500.0,0.00014519,2]
[333699425,1722371439001,-500.0,0.00014519,2]
[333699426,1722371439011,-500.0,0.00014519,2]
[333699427,1722371439023,-1994.07,0.00014519,2]
[333699428,1722371439034,-1994.07,0.00014519,2]
[333699429,1722371439045,-1994.07,0.00014519,2]
[333699430,1722371439055,-1994.07,0.00014519,2]
[333699431,1722371439067,-1994.07,0.00014519,2]
[333699432,1722371439080,-1994.07,0.00014519,2]
[333699433,1722371439090,-1994.07,0.00014519,2]
[333699434,1722371439102,-1994.07,0.00014519,2]
[333699435,1722371439112,-2044.77445265,0.0001452,5]
[333699436,1722371439121,-1044.80230438,0.0001452,5]
[333699437,1722371439131,-5490.49414935,0.0001452,2]
[333699438,1722371439140,-1368.41,0.0001452,2]
[333699439,1722371439151,-6553.49,0.0001452,2]
[333699440,1722371439160,-500.0,0.0001452,2]
[333699441,1722371439170,-5296.11,0.0001452,2]
[333699442,1722371439179,-550.34,0.0001452,2]
[333699443,1722371439188,-1244.51,0.0001452,2]
[333699444,1722371439197,-3380.92,0.0001452,2]
[333699445,1722371439208,-500.0,0.0001452,2]
[333699446,1722371439217,-500.0,0.0001452,2]
[333699447,1722371439227,-500.0,0.0001452,2]
[333699448,1722371439236,-500.0,0.0001452,2]
[333699449,1722371439247,-553.41,0.0001452,2]
[333699450,1722371439258,-446.52,0.0001452,2]
[333699451,1722371439269,-491.49,0.0001452,2]
[333699452,1722371439280,-460.72,0.0001452,2]
[333699453,1722371439291,-500.0,0.0001452,2]
[333699454,1722371439301,-500.0,0.0001452,2]
[333699455,1722371439311,-500.0,0.0001452,2]
[333699456,1722371439320,-209.23,0.0001452,2]
[333699457,1722371439330,-500.0,0.0001452,2]
[333699458,1722371439339,-372.15,0.0001452,2]
[333699459,1722371439349,-500.0,0.0001452,2]
[333699460,1722371439358,-568.46,0.0001452,2]
[333699461,1722371439368,-339.52,0.0001452,2]
[333699462,1722371439377,-500.0,0.0001452,2]
[333699463,1722371439388,-363.68,0.0001452,2]
[333699464,1722371439398,-500.0,0.0001452,2]
[333699465,1722371439407,-500.0,0.0001452,2]
[333699466,1722371439417,-500.0,0.0001452,2]
[333699467,1722371439428,-500.0,0.0001452,2]
[333699468,1722371439438,-547.68,0.0001452,2]
[333699469,1722371439448,-527.26,0.0001452,2]
[333699470,1722371439458,-500.0,0.0001452,2]
[333699471,1722371439469,-500.0,0.0001452,2]
[333699472,1722371439480,-173.44,0.0001452,2]
[333699473,1722371439490,-500.0,0.0001452,2]
[333699474,1722371439501,-165.75,0.0001452,2]
[333699475,1722371439511,-500.0,0.0001452,2]
[333699476,1722371439522,-500.0,0.0001452,2]
[333699477,1722371439532,-413.79,0.0001452,2]
[333699478,1722371439541,-310.24,0.0001452,2]
[333699479,1722371439551,-500.0,0.0001452,2]
[333699480,1722371439560,-500.0,0.0001452,2]
[333699481,1722371439570,-472.69516462,0.0001452,2]
[333699482,1722371439579,-363.68,0.0001452,2]
[333699483,1722371439589,-500.0,0.0001452,2]
[333699484,1722371439600,-440.16053472,0.0001452,2]
[333699485,1722371439612,-500.0,0.0001452,2]
[333699486,1722371439622,-500.0,0.0001452,2]
[333699487,1722371439633,-500.0,0.0001452,2]
[333699488,1722371439643,-508.87748555,0.0001452,2]
[333699489,1722371439654,-500.0,0.0001452,2]
[333699490,1722371439665,-379.26543277,0.0001452,2]
[333699491,1722371439675,-500.0,0.0001452,2]
[333699492,1722371439686,-500.0,0.0001452,2]
[333699493,1722371439696,-528.48,0.0001452,2]
[333699494,1722371439707,-500.0,0.0001452,2]
[333699495,1722371439717,-500.0,0.0001452,2]
[333699496,1722371439728,-500.0,0.0001452,2]
[333699497,1722371439741,-500.0,0.0001452,2]
[333699498,1722371439752,-500.0,0.0001452,2]
[333699499,1722371439762,-500.0,0.0001452,2]
[333699500,1722371439773,-500.0,0.0001452,2]
[333699501,1722371439786,-500.0,0.0001452,2]
[333699502,1722371439797,-500.0,0.0001452,2]
[333699503,1722371439807,-618.66,0.0001452,2]
[333699504,1722371439819,-509.09,0.0001452,2]
[333699505,1722371439829,-500.0,0.0001452,2]
[333699506,1722371439840,-500.0,0.0001452,2]
[333699507,1722371439850,-500.0,0.0001452,2]
[333699508,1722371439861,-450.33,0.0001452,2]
[333699509,1722371439872,-406.57,0.0001452,2]
[333699510,1722371439883,-500.0,0.0001452,2]
[333699511,1722371439892,-500.0,0.0001452,2]
[333699512,1722371439903,-500.0,0.0001452,2]
[333699513,1722371439914,-500.0,0.0001452,2]
[333699514,1722371439925,-175.05,0.0001452,2]
[333699515,1722371439936,-500.0,0.0001452,2]
[333699516,1722371439948,-500.0,0.0001452,2]
[333699517,1722371439959,-500.0,0.0001452,2]
[333699518,1722371439969,-500.0,0.0001452,2]
[333699519,1722371439980,-500.0,0.0001452,2]
[333699520,1722371439991,-500.0,0.0001452,2]
[333699521,1722371440001,-500.0,0.0001452,2]
[333699522,1722371440011,-500.0,0.0001452,2]
[333699523,1722371440023,-500.0,0.0001452,2]
[333699524,1722371440034,-500.0,0.0001452,2]
[333699525,1722371440044,-500.0,0.0001452,2]
[333699526,1722371440055,-500.0,0.0001452,2]
[333699527,1722371440065,-648.39,0.0001452,2]
[333699528,1722371440075,-552.93619208,0.0001452,2]
[333699530,1722371440084,-500.0,0.0001452,2]
[333699531,1722371440094,-500.0,0.0001452,2]
[333699532,1722371440103,-500.0,0.0001452,2]
[333699533,1722371440112,-500.0,0.0001452,2]
[333699534,1722371440122,-552.89,0.0001452,2]
[333699535,1722371440132,-500.0,0.0001452,2]
[333699536,1722371440142,-492.59,0.0001452,2]
[333699538,1722371440152,-500.0,0.0001452,2]
[333699540,1722371440162,-500.0,0.0001452,2]
[333699541,1722371440173,-500.0,0.0001452,2]
[333699542,1722371440183,-500.0,0.0001452,2]
[333699543,1722371440193,-500.0,0.0001452,2]
[333699544,1722371440204,-217.36,0.0001452,2]
[333699545,1722371440216,-446.95,0.0001452,2]
[333699546,1722371440227,-500.0,0.0001452,2]
[333699547,1722371440237,-529.81372759,0.0001452,2]
[333699548,1722371440247,-500.0,0.0001452,2]
[333699550,1722371440258,-500.0,0.0001452,2]
[333699551,1722371440268,-625.78,0.0001452,2]
[333699552,1722371440278,-500.0,0.0001452,2]
[333699553,1722371440288,-475.54,0.0001452,2]
[333699554,1722371440300,-534.35,0.0001452,2]
[333699555,1722371440310,-500.0,0.0001452,2]
[333699556,1722371440319,-500.0,0.0001452,2]
[333699557,1722371440328,-500.0,0.0001452,2]
[333699558,1722371440338,-500.0,0.0001452,2]
[333699559,1722371440348,-157.89768465,0.0001452,2]
[333699560,1722371440358,-500.0,0.0001452,2]
[333699562,1722371440368,-500.0,0.0001452,2]
[333699563,1722371440378,-500.0,0.0001452,2]
[333699564,1722371440388,-500.0,0.0001452,2]
[333699565,1722371440398,-500.0,0.0001452,2]
[333699566,1722371440409,-505.70084917,0.0001452,2]
[333699568,1722371440420,-500.0,0.0001452,2]
[333699569,1722371440432,-500.0,0.0001452,2]
[333699571,1722371440442,-500.0,0.0001452,2]
[333699573,1722371440452,-500.0,0.0001452,2]
[333699574,1722371440462,-500.0,0.0001452,2]
[333699575,1722371440473,-500.0,0.0001452,2]
[333699576,1722371440482,-540.37531608,0.0001452,2]
[333699577,1722371440493,-500.0,0.0001452,2]
[333699578,1722371440503,-337.06612314,0.0001452,2]
[333699579,1722371440514,-500.0,0.0001452,2]
[333699580,1722371440525,-500.0,0.0001452,2]
[333699581,1722371440535,-500.0,0.0001452,2]
[333699582,1722371440545,-500.0,0.0001452,2]
[333699583,1722371440556,-500.0,0.0001452,2]
[333699584,1722371440565,-407.73,0.0001452,2]
[333699585,1722371440574,-500.0,0.0001452,2]
[333699586,1722371440585,-500.0,0.0001452,2]
[333699589,1722371440778,-500.0,0.0001452,2]
[333699590,1722371440788,-507.81651231,0.0001452,2]
[333699591,1722371440798,-500.0,0.0001452,2]
[333699592,1722371440810,-500.0,0.0001452,2]
[333699593,1722371440820,-500.0,0.0001452,2]
[333699594,1722371440831,-612.89,0.0001452,2]
[333699595,1722371440841,-500.0,0.0001452,2]
[333699596,1722371440853,-500.0,0.0001452,2]
[333699597,1722371440865,-500.0,0.0001452,2]
[333699598,1722371440875,-506.39755018,0.0001452,2]
[333699599,1722371440886,-500.0,0.0001452,2]
[333699600,1722371440896,-500.0,0.0001452,2]
[333699601,1722371440908,-500.0,0.0001452,2]
[333699602,1722371440918,-547.02,0.0001452,2]
[333699603,1722371440928,-537.79,0.0001452,2]
[333699604,1722371440938,-500.0,0.0001452,2]
[333699605,1722371440947,-500.0,0.0001452,2]
[333699606,1722371440958,-500.0,0.0001452,2]
[333699607,1722371440968,-500.0,0.0001452,2]
[333699608,1722371440979,-500.0,0.0001452,2]
[333699609,1722371440989,-613.63,0.0001452,2]
[333699610,1722371440999,-500.0,0.0001452,2]
[333699611,1722371441009,-500.0,0.0001452,2]
[333699612,1722371441020,-439.14294273,0.0001452,2]
[333699613,1722371441030,-500.0,0.0001452,2]
[333699614,1722371441040,-500.0,0.0001452,2]
[333699615,1722371441050,-500.0,0.0001452,2]
[333699616,1722371441061,-500.0,0.0001452,2]
[333699617,1722371441072,-500.0,0.0001452,2]
[333699618,1722371441082,-500.0,0.0001452,2]
[333699619,1722371441093,-500.0,0.0001452,2]
[333699620,1722371441104,-646.98,0.0001452,2]
[333699621,1722371441114,-500.0,0.0001452,2]
[333699622,1722371441127,-503.68280845,0.0001452,2]
[333699623,1722371441139,-500.0,0.0001452,2]
[333699624,1722371441148,-500.0,0.0001452,2]
[333699625,1722371441160,-500.0,0.0001452,2]
[333699626,1722371441171,-500.0,0.0001452,2]
[333699627,1722371441183,-500.0,0.0001452,2]
[333699628,1722371441193,-500.0,0.0001452,2]
[333699629,1722371441203,-500.0,0.0001452,2]
[333699630,1722371441213,-500.0,0.0001452,2]
[333699631,1722371441222,-500.0,0.0001452,2]
[333699632,1722371441231,-500.0,0.0001452,2]
[333699633,1722371441241,-500.0,0.0001452,2]
[333699634,1722371441251,-595.85,0.0001452,2]
[333699635,1722371441262,-500.0,0.0001452,2]
[333699636,1722371441272,-500.0,0.0001452,2]
[333699637,1722371441281,-500.0,0.0001452,2]
[333699638,1722371441290,-503.27924956,0.0001452,2]
[333699639,1722371441300,-500.0,0.0001452,2]
[333699640,1722371441309,-506.72774178,0.0001452,2]
[333699641,1722371441318,-544.86,0.0001452,2]
[333699642,1722371441327,-478.61781325,0.0001452,2]
[333699643,1722371441423,-29.44894538,0.0001452,2]
[333699644,1722371441436,-507.2138894,0.0001452,2]
[333699645,1722371441446,-504.66779833,0.0001452,2]
[333699646,1722371441458,-500.0,0.0001452,2]
[333699647,1722371441471,-500.0,0.0001452,2]
[333699648,1722371441482,-500.0,0.0001452,2]
[333699649,1722371441494,-500.0,0.0001452,2]
[333699650,1722371441504,-414.39,0.0001452,2]
[333699651,1722371441514,-188.64,0.0001452,2]
[333699652,1722371441523,-500.0,0.0001452,2]
[333699653,1722371441532,-521.85,0.0001452,2]
[333699654,1722371441542,-500.0,0.0001452,2]
[333699655,1722371441551,-151.52,0.0001452,2]
[333699656,1722371441561,-505.54035652,0.0001452,2]
[333699657,1722371441572,-500.0,0.0001452,2]
[333699658,1722371441583,-500.0,0.0001452,2]
[333699659,1722371441594,-400.13573155,0.0001452,2]
[333699660,1722371441605,-500.0,0.0001452,2]
[333699661,1722371441615,-270.20773507,0.0001452,2]
[333699662,1722371441626,-500.0,0.0001452,2]
[333699663,1722371441636,-395.8,0.0001452,2]
[333699664,1722371441646,-500.0,0.0001452,2]
[333699665,1722371441656,-500.0,0.0001452,2]
[333699666,1722371441667,-500.0,0.0001452,2]
[333699667,1722371441677,-500.0,0.0001452,2]
[333699668,1722371441688,-500.0,0.0001452,2]
[333699669,1722371441699,-500.0,0.0001452,2]
[333699670,1722371441710,-500.0,0.0001452,2]
[333699671,1722371441720,-866.40853665,0.0001452,2]
[333699672,1722371441735,-576.89799996,0.0001452,2]
[333699673,1722371441896,-92.54472153,0.0001452,2]
[333699698,1722371443463,-211.03874186,0.0001452,2]
[333699700,1722371443474,-500.0,0.0001452,2]
[333699701,1722371443484,-500.0,0.0001452,2]
[333699702,1722371443493,-500.0,0.0001452,2]
[333699703,1722371443502,-500.0,0.0001452,2]
[333699704,1722371443513,-1337.6,0.0001452,2]
[333699705,1722371443524,-500.0,0.0001452,2]
[333699706,1722371443533,-500.0,0.0001452,2]
[333699707,1722371443542,-500.0,0.0001452,2]
[333699708,1722371443552,-500.0,0.0001452,2]
[333699709,1722371443562,-500.0,0.0001452,2]
[333699710,1722371443571,-586.73,0.0001452,2]
[333699711,1722371443581,-500.0,0.0001452,2]
[333699712,1722371443590,-500.0,0.0001452,2]
[333699713,1722371443599,-500.0,0.0001452,2]
[333699714,1722371443609,-500.0,0.0001452,2]
[333699715,1722371443619,-500.0,0.0001452,2]
[333699716,1722371443628,-500.0,0.0001452,2]
[333699717,1722371443638,-500.0,0.0001452,2]
[333699718,1722371443647,-505.16275243,0.0001452,2]
[333699719,1722371443656,-500.0,0.0001452,2]
[333699720,1722371443667,-292.64866698,0.0001452,2]
[333699721,1722371443676,-645.43,0.0001452,2]
[333699722,1722371443686,-466.15635534,0.0001452,2]
[333699723,1722371443695,-500.0,0.0001452,2]
[333699724,1722371443705,-591.71,0.0001452,2]
[333699725,1722371443715,-188.86,0.0001452,2]
[333699726,1722371443725,-574.6,0.0001452,2]
[333699727,1722371443734,-500.0,0.0001452,2]
[333699728,1722371443744,-500.0,0.0001452,2]
[333699729,1722371443753,-500.0,0.0001452,2]
[333699730,1722371443762,-500.0,0.0001452,2]
[333699731,1722371443772,-634.81,0.0001452,2]
[333699732,1722371443782,-500.0,0.0001452,2]
[333699733,1722371443791,-500.0,0.0001452,2]
[333699734,1722371443801,-460.72,0.0001452,2]
[333699735,1722371443810,-500.0,0.0001452,2]
[333699736,1722371443820,-298.06,0.0001452,2]
[333699737,1722371443829,-500.0,0.0001452,2]
[333699738,1722371443839,-500.0,0.0001452,2]
[333699739,1722371443848,-500.0,0.0001452,2]
[333699740,1722371443858,-500.0,0.0001452,2]
[333699741,1722371443867,-500.0,0.0001452,2]
[333699742,1722371443877,-500.0,0.0001452,2]
[333699743,1722371443886,-500.0,0.0001452,2]
[333699744,1722371443895,-500.0,0.0001452,2]
[333699745,1722371443905,-500.0,0.0001452,2]
[333699746,1722371443915,-266.01080405,0.0001452,2]
[333699747,1722371443924,-500.0,0.0001452,2]
[333699748,1722371443933,-500.0,0.0001452,2]
[333699749,1722371443943,-472.17357371,0.0001452,2]
[333699750,1722371443953,-500.0,0.0001452,2]
[333699751,1722371443963,-500.0,0.0001452,2]
[333699752,1722371443972,-223.84848667,0.0001452,2]
[333699753,1722371443982,-314.30392797,0.0001452,2]
[333699754,1722371443991,-500.0,0.0001452,2]
[333699755,1722371444001,-500.0,0.0001452,2]
[333699756,1722371444010,-500.0,0.0001452,2]
[333699757,1722371444020,-500.0,0.0001452,2]
[333699758,1722371444029,-500.0,0.0001452,2]
[333699759,1722371444039,-573.1822421,0.0001452,2]
[333699760,1722371444049,-386.82,0.0001452,2]
[333699761,1722371444058,-500.0,0.0001452,2]
[333699762,1722371444068,-636.32696466,0.0001452,2]
[333699763,1722371444078,-210.4,0.0001452,2]
[333699764,1722371444087,-500.0,0.0001452,2]
[333699765,1722371444096,-500.0,0.0001452,2]
[333699766,1722371444105,-388.72646832,0.0001452,2]
[333699767,1722371444114,-597.39,0.0001452,2]
[333699768,1722371444123,-529.48654833,0.0001452,2]
[333699769,1722371444132,-605.80698513,0.0001452,2]
[333699770,1722371444141,-150.79,0.0001452,2]
[333699771,1722371444150,-500.0,0.0001452,2]
[333699772,1722371444159,-500.0,0.0001452,2]
[333699773,1722371444169,-511.3,0.0001452,2]
[333699774,1722371444178,-575.55,0.0001452,2]
[333699775,1722371444188,-507.23967588,0.0001452,2]
[333699776,1722371444198,-500.0,0.0001452,2]
[333699777,1722371444208,-500.0,0.0001452,2]
[333699778,1722371444218,-500.0,0.0001452,2]
[333699779,1722371444227,-500.0,0.0001452,2]
[333699780,1722371444237,-500.0,0.0001452,2]
[333699781,1722371444246,-326.93579326,0.0001452,2]
[333699782,1722371444255,-500.0,0.0001452,2]
[333699783,1722371444264,-500.0,0.0001452,2]
[333699784,1722371444273,-500.0,0.0001452,2]
[333699785,1722371444283,-282.73,0.0001452,2]
[333699786,1722371444293,-500.0,0.0001452,2]
[333699787,1722371444302,-500.0,0.0001452,2]
[333699788,1722371444312,-500.0,0.0001452,2]
[333699789,1722371444321,-500.0,0.0001452,2]
[333699790,1722371444330,-500.0,0.0001452,2]
[333699791,1722371444339,-275.67023431,0.0001452,2]
[333699792,1722371444349,-500.0,0.0001452,2]
[333699793,1722371444358,-190.79,0.0001452,2]
[333699794,1722371444367,-534.71,0.0001452,2]
[333699795,1722371444376,-500.0,0.0001452,2]
[333699796,1722371444385,-500.0,0.0001452,2]
[333699797,1722371444394,-500.0,0.0001452,2]
[333699798,1722371444404,-500.0,0.0001452,2]
[333699799,1722371444413,-500.0,0.0001452,2]
[333699800,1722371444422,-500.0,0.0001452,2]
[333699801,1722371444436,-500.0,0.0001452,2]
[333699802,1722371444446,-500.0,0.0001452,2]
[333699803,1722371444455,-313.7497777,0.0001452,2]
[333699804,1722371444474,-186.2502223,0.0001452,2]
[333699805,1722371444484,-88.69197413,0.0001452,2]
[333699839,1722371446570,-411.30802587,0.0001452,2]
[333699840,1722371446580,-109.12226913,0.0001452,2]
[333699841,1722371446682,-412.72773087,0.0001452,2]
[333699842,1722371446692,-293.96,0.0001452,2]
[333699843,1722371446702,-500.0,0.0001452,2]
[333699844,1722371446713,-500.0,0.0001452,2]
[333699845,1722371446722,-500.0,0.0001452,2]
[333699846,1722371446732,-1083.33,0.0001452,2]
[333699847,1722371446741,-500.0,0.0001452,2]
[333699848,1722371446750,-249.71,0.0001452,2]
[333699849,1722371446760,-40.12257821,0.0001452,2]
[333699881,1722372432130,-252.2315661,0.0001268,2]
[333699882,1722372432152,-165.672597,0.00012986,2]
[333699883,1722372432175,-187.142935,0.0001303,2]
[333699884,1722372432197,-724.81279678,0.00013699,2]
[333699909,1722372632964,-187.142935,0.00013162,2]
[333699910,1722372632977,-300.0,0.00013698,2]
[333699911,1722372632986,-2275.18720322,0.00013699,2]
[333699912,1722372632998,-295.46658971,0.00013699,2]
[333700001,1722372640886,-2149.31548844,0.00013699,2]
[333700002,1722372640900,-972.0,0.00013699,2]
[333700003,1722372640950,-6.53761809,0.00013699,2]
[333700020,1722372643592,-4542.04590014,0.00013699,2]
[333700021,1722372643601,-294.1142903,0.000138,2]
[333700022,1722372643611,-621.44607136,0.00013888,2]
[333700023,1722372643621,-294.0793213,0.00013978,2]
[333700024,1722372643633,-206.8555981,0.00013978,2]
[333700025,1722372643644,-413.649239,0.00014,2]
[333700026,1722372643655,-454.89251182,0.00014098,2]
[333700027,1722372643665,-454.89251179,0.00014176,2]
[333700028,1722372643675,-9553.53085755,0.00014189,2]
[333700029,1722372643687,-1791.89,0.00014189,2]
[333700030,1722372643699,-499.78027732,0.00014189,2]
[333700045,1722372646714,-4789.11168663,0.00014189,2]
[333700046,1722372646725,-500.0,0.00014196,2]
[333700047,1722372646737,-404.21286744,0.00014196,2]
[333700048,1722372646747,-500.0,0.00014196,2]
[333700049,1722372646757,-500.0,0.00014196,2]
[333700050,1722372646766,-500.0,0.00014196,2]
[333700051,1722372646776,-500.0,0.00014196,2]
[333700052,1722372646785,-500.0,0.00014196,2]
[333700053,1722372646795,-500.0,0.00014196,2]
[333700054,1722372646806,-500.0,0.00014196,2]
[333700055,1722372646817,-500.0,0.00014196,2]
[333700056,1722372646826,-500.0,0.00014196,2]
[333700057,1722372646835,-568.18705023,0.00014196,2]
[333700058,1722372646844,-500.0,0.00014197,2]
[333700059,1722372646854,-500.0,0.00014197,2]
[333700060,1722372646863,-500.0,0.00014197,2]
[333700061,1722372646873,-508.8658198,0.00014197,2]
[333700062,1722372646885,-500.0,0.00014197,2]
[333700063,1722372646896,-500.0,0.00014197,2]
[333700064,1722372646906,-510.91045092,0.00014197,2]
[333700065,1722372646916,-500.0,0.00014197,2]
[333700066,1722372646925,-504.57745994,0.00014197,2]
[333700067,1722372646935,-592.80057666,0.00014197,2]
[333700068,1722372646945,-500.0,0.00014197,2]
[333700069,1722372646954,-500.0,0.00014197,2]
[333700070,1722372646964,-520.38023902,0.00014197,2]
[333700071,1722372646976,-500.0,0.00014197,2]
[333700072,1722372646987,-500.0,0.00014197,2]
[333700073,1722372646996,-500.0,0.00014197,2]
[333700074,1722372647006,-500.0,0.00014197,2]
[333700075,1722372647015,-500.0,0.00014197,2]
[333700076,1722372647024,-502.34821181,0.00014197,2]
[333700077,1722372647034,-500.0,0.00014197,2]
[333700078,1722372647043,-255.70376863,0.00014197,2]
[333700079,1722372647052,-500.8979793,0.00014197,2]
[333700080,1722372647062,-500.0,0.00014197,2]
[333700081,1722372647071,-500.0,0.00014197,2]
[333700082,1722372647080,-500.0,0.00014197,2]
[333700083,1722372647089,-500.0,0.00014197,2]
[333700084,1722372647098,-500.0,0.00014197,2]
[333700085,1722372647108,-150.0,0.00014197,2]
[333700086,1722372647117,-209.98036426,0.00014197,2]
[333700087,1722372647126,-500.0,0.00014197,2]
[333700088,1722372647144,-500.0,0.00014197,2]
[333700089,1722372647158,-500.0,0.00014197,2]
[333700090,1722372647168,-500.0,0.00014197,2]
[333700091,1722372647178,-500.0,0.00014197,2]
[333700092,1722372647188,-453.02021715,0.00014197,2]
[333700093,1722372647199,-500.0,0.00014197,2]
[333700094,1722372647209,-500.0,0.00014197,2]
[333700095,1722372647219,-500.0,0.00014197,2]
[333700096,1722372647229,-272.21608782,0.00014197,2]
[333700097,1722372647241,-500.0,0.00014197,2]
[333700098,1722372647251,-398.45510743,0.00014197,2]
[333700099,1722372647261,-607.14501836,0.00014197,2]
[333700100,1722372647270,-500.0,0.00014197,2]
[333700101,1722372647280,-500.0,0.00014198,2]
[333700102,1722372647290,-500.0,0.00014198,2]
[333700103,1722372647299,-500.0,0.00014198,2]
[333700104,1722372647309,-872.69,0.00014198,2]
[333700105,1722372647318,-500.0,0.00014198,2]
[333700106,1722372647328,-500.0,0.00014198,2]
[333700107,1722372647338,-500.0,0.00014198,2]
[333700108,1722372647348,-500.0,0.00014198,2]